Cogmind - Beta 14 @@@ ROGUE MODE // 2025.03.24 @ 13:13:33 // Winter2019/RPGLIKE Player: Lava Result: Destroyed by as-57307 with Assembled Heavy Rifle Performance ------------- Evolutions (0) 0 Regions Visited (4) 800 Robots Destroyed (19) 95 Value Destroyed (637) 637 Prototype IDs (0) 0 Alien Tech Used (0) 0 Bonus (0) 0 TOTAL SCORE: 1532 Bonus ------- None Cogmind --------- Core Integrity 0/600 Matter 283/300 Energy 155/160 System Corruption 0% Temperature Cool (0) Movement Treading (160) Location -9/Mines Parts ------- > --- POWER (1) -------- Light Nuclear Core > --- PROPULSION (2) --- Light Treads Light Treads > --- UTILITY (3) ------ Signal Interpreter Hacking Suite > --- WEAPON (2) ------- Assault Rifle Makeshift Spear > --- INVENTORY (3) ---- Sensor Array Assault Rifle Light Assault Rifle Peak State ------------ > --- POWER ------------ Light Nuclear Core > --- PROPULSION ------- Light Treads Light Treads > --- UTILITY ---------- Signal Interpreter Hacking Suite > --- WEAPON ----------- Assault Rifle Makeshift Spear > --- INVENTORY -------- Sensor Array Assault Rifle Light Assault Rifle [Rating: 14] Favorites ----------- Power Light Nuclear Core Engine Ion Engine Power Core Light Nuclear Core Propulsion Light Treads Treads Light Treads Utility Hacking Suite Device Sensor Array Processor Signal Interpreter Hackware Hacking Suite Weapon Assault Rifle Ballistic Gun Assault Rifle Piercing Weapon Makeshift Spear Build | -11 -10 -10 -10 -9 ------- Run | Yrd Mat Min Exi Min Slots Evolved 4 | 3 . . . 1 Power . | . . . . . Propulsion 1 | 1 . . . . Utility 2 | 1 . . . 1 Weapon 1 | 1 . . . . Parts Attached 16 | 5 7 . 3 1 Power 4 | 1 2 . 1 . Engine 2 | 1 1 . . . Core 2 | . 1 . 1 . Reactor . | . . . . . Propulsion 2 | 2 . . . . Treads 2 | 2 . . . . Leg . | . . . . . Wheel . | . . . . . Hover . | . . . . . Flight . | . . . . . Utility 4 | . 4 . . . Device 1 | . 1 . . . Storage . | . . . . . Processor 2 | . 2 . . . Hackware 1 | . 1 . . . Protection . | . . . . . Artifact . | . . . . . Weapon 6 | 2 1 . 2 1 Energy Gun . | . . . . . Energy Cannon . | . . . . . Ballistic Gun 4 | 2 1 . 1 . Ballistic Cannon . | . . . . . Launcher . | . . . . . Special Weapon . | . . . . . Impact Weapon . | . . . . . Slashing Weapon . | . . . . . Piercing Weapon 2 | . . . 1 1 Special Melee Weapon . | . . . . . Unidentified Prototypes . | . . . . . Parts Lost 1 | . 1 . . . Power 1 | . 1 . . . Propulsion . | . . . . . Utility . | . . . . . Weapon . | . . . . . Highest Loss Streak 1 | . 1 . . . To Critical Strikes . | . . . . . Average Slot Usage (%) 93 | . 87 100 100 88 Engine 4 | . 6 14 2 . Core 6 | . 2 . 11 12 Treads 27 | . 28 28 28 25 Processor 11 | . 9 14 14 12 Hackware 12 | . 11 14 14 12 Ballistic Gun 23 | . 28 28 17 24 Piercing Weapon 4 | . . . 10 1 Peak Build Rating 14 | 5 11 9 14 14 Average Rating 10 | 3 8 9 13 11 On Entrance 6 | . 5 9 9 11 Naked Turns . | . . . . . Heaviest Build 9 | 6 9 9 9 9 Greatest Support 40 | 40 40 40 40 40 Greatest Overweight (x) . | . . . . . Average Overweight (x) . | . . . . . Largest Inventory Capacity 3 | 3 3 3 3 3 Average Capacity 3 | 3 3 3 3 3 Most Carried 3 | 3 3 3 3 3 Average Carried 2 | . 2 3 2 3 Final Capacity 3 | 3 3 3 3 3 Final Carried 3 | . 3 3 3 3 Class Distribution -------------------- 100% | Mutant Dominant Class ---------------- Mutant | -10/Materials Mutant | -10/Mines Mutant | -10/Exiles Mutant | -9/Mines Resources | -11 -10 -10 -10 -9 ----------- Run | Yrd Mat Min Exi Min Matter Collected 816 | 250 468 . 77 21 Remotely . | . . . . . Salvage Created 1053 | . 572 . 446 35 Parts 50 | . 37 . 13 . Haulers Intercepted . | . . . . . Recyclers Shooed . | . . . . . Parts Field Recycled . | . . . . . Retrieved Matter . | . . . . . Parts Self-Destructed . | . . . . . Prevented . | . . . . . Kills | -11 -10 -10 -10 -9 ------- Run | Yrd Mat Min Exi Min Combat Hostiles Destroyed 18 | . 11 . 3 4 Melee 4 | . . . 1 3 Guns 14 | . 11 . 2 1 Classes Destroyed 5 | . 3 . 1 1 Operator 2 | . 2 . . . Watcher 3 | . 3 . . . Grunt 12 | . 11 . 1 . Hunter 2 | . . . 2 . Assembled 4 | . . . . 4 Best Kill Streak 4 | . 2 . 2 4 Combat Bots Only 4 | . 2 . 2 4 Max Kills in Single Turn 1 | . 1 . 1 1 Gunslinging . | . . . . . Exploded . | . . . . . Melee 1 | . . . 1 1 Uniques/NPCs Destroyed . | . . . . . Combat | -11 -10 -10 -10 -9 -------- Run | Yrd Mat Min Exi Min Hostile Shots Fired 139 | . 86 . . 53 Missed 36 | . 22 . . 14 Damage Taken 1506 | . 899 . . 607 Core 1195 | . 694 . . 501 Absorbed by Shields . | . . . . . Redirected to Core 954 | . 593 . . 361 Core Remaining (%) 100 | 100 . . . . Volleys Fired 84 | . 70 . 11 3 Largest 2 | . 2 . 2 2 Hottest 40 | . 40 . 40 40 Shots Fired 165 | . 140 . 19 6 Gun 165 | . 140 . 19 6 Cannon . | . . . . . Launcher . | . . . . . Special . | . . . . . Kinetic 165 | . 140 . 19 6 Thermal . | . . . . . Explosive . | . . . . . Electromagnetic . | . . . . . Robot Hit Streak 11 | . 11 . 10 2 Robot Miss Streak 4 | . 4 . 1 2 Penetration Max . | . . . . . Secondary Targets 2 | . 2 . . . Max Gunslinging Chain 1 | . 1 . . . Shots Hit Robots 126 | . 86 . 33 7 Core Hits 51 | . 30 . 17 4 Critical Kills . | . . . . . Critical Parts Destroyed 1 | . 1 . . . Critical Strikes 3 | . 1 . 1 1 Destroy 1 | . 1 . . . Impale 2 | . . . 1 1 Melee Attacks 25 | . . . 18 7 Impact . | . . . . . Slashing . | . . . . . Piercing 25 | . . . 18 7 Sneak Attacks 1 | . . . 1 . Combat Hostiles 1 | . . . 1 . Follow-up Attacks . | . . . . . Damage Inflicted 2568 | . 1113 . 1284 171 Guns 1300 | . 1113 . 148 39 Cannons . | . . . . . Explosions . | . . . . . Melee 1268 | . . . 1136 132 Ramming . | . . . . . Kinetic 1300 | . 1113 . 148 39 Thermal . | . . . . . Explosive . | . . . . . Electromagnetic . | . . . . . Impact . | . . . . . Slashing . | . . . . . Piercing 1268 | . . . 1136 132 Highest Corruption . | . . . . . Average Corruption . | . . . . . Corruption Purged . | . . . . . Corruption Blocked . | . . . . . Overload Shots . | . . . . . Overflow Damage 206 | . . . 198 8 Projectiles . | . . . . . Explosions . | . . . . . Melee 206 | . . . 198 8 Knockbacks . | . . . . . Impact . | . . . . . Kinetic . | . . . . . Secondary . | . . . . . Self-Inflicted Damage . | . . . . . Shots . | . . . . . Rammed . | . . . . . Targets Rammed . | . . . . . Kicked . | . . . . . Crushed . | . . . . . Highest Temperature 20 | . 9 . . 20 Average Temperature 3 | . 2 . . 7 Received Heat Transfer 603 | . 483 . . 120 Siege Activations . | . . . . . Robots Corrupted . | . . . . . Combat Hostiles . | . . . . . Parts Fried . | . . . . . Impact Corruptions . | . . . . . Robots Melted . | . . . . . Combat Hostiles . | . . . . . Parts Melted . | . . . . . Heat Transferred . | . . . . . Parts Sabotaged . | . . . . . Parts Stolen . | . . . . . Parts Stripped . | . . . . . Power Chain Reactions . | . . . . . Alert | -11 -10 -10 -10 -9 ------- Run | Yrd Mat Min Exi Min Peak Influence 191 | . 191 3 . . Initial 3 | . . 3 . . Average 58 | . 68 3 . . Maximum Alert Level 1 | . 1 . . . Low Security (%) 99 | 100 99 100 . 100 Level 1 . | . . . . . Level 2 . | . . . . . Level 3 . | . . . . . Level 4 . | . . . . . Level 5 . | . . . . . High Security . | . . . . . Max Security . | . . . . . Squads Dispatched 3 | . 3 . . . Investigation 1 | . 1 . . . Extermination . | . . . . . Reinforcement 2 | . 2 . . . Assault . | . . . . . Garrison . | . . . . . Intercept . | . . . . . Searches Triggered . | . . . . . Construction Impeded . | . . . . . Haulers Reinforced . | . . . . . Active Scanning Responses . | . . . . . Cargo Convoy Interrupts . | . . . . . Stealth | -11 -10 -10 -10 -9 --------- Run | Yrd Mat Min Exi Min Distress Signals 2 | . 2 . . . Communications Jammed . | . . . . . Distress Signals . | . . . . . Times Spotted 30 | . 22 . . 8 Peak Tracking Total 8 | . 4 . . 8 Tactical Retreats . | . . . . . Traps | -11 -10 -10 -10 -9 ------- Run | Yrd Mat Min Exi Min Traps Triggered 1 | . 1 . . . Indirectly . | . . . . . Trap Hack Attempts . | . . . . . Triggered . | . . . . . Disarmed 1 | . 1 . . . Reprogrammed . | . . . . . Reused . | . . . . . Traps Extracted . | . . . . . Installed . | . . . . . Triggered . | . . . . . Machines | -11 -10 -10 -10 -9 ---------- Run | Yrd Mat Min Exi Min Machines Disabled 2 | . 1 . 1 . Max in Single Turn 1 | . 1 . 1 . Machines Repaired . | . . . . . Machines Dismantled . | . . . . . Machines Sabotaged . | . . . . . Overloaded Fab Kills . | . . . . . Hacking | -11 -10 -10 -10 -9 --------- Run | Yrd Mat Min Exi Min Machines Accessed 5 | . 5 . . . Terminals 5 | . 5 . . . Fabricators . | . . . . . Repair Stations . | . . . . . Recycling Units . | . . . . . Scanalyzers . | . . . . . Garrison Access . | . . . . . Total Hacks 13 | . 13 . . . Successful 3 | . 3 . . . Failed 10 | . 10 . . . Catastrophic 3 | . 3 . . . Database Lockouts . | . . . . . Manual 12 | . 10 . 2 . Terminals 13 | . 13 . . . Fabricators . | . . . . . Repair Stations . | . . . . . Recycling Units . | . . . . . Scanalyzers . | . . . . . Garrison Access . | . . . . . Terminal Hacks 3 | . 3 . . . Disarm Traps 1 | . 1 . . . Hauler Manifests 1 | . 1 . . . Registered Prototypes 1 | . 1 . . . Fabricator Hacks . | . . . . . Repair Station Hacks . | . . . . . Recycling Unit Hacks . | . . . . . Scanalyzer . | . . . . . Garrison Access Hacks . | . . . . . Unauthorized Hacks . | . . . . . Terminals . | . . . . . Fabricators . | . . . . . Repair Stations . | . . . . . Recycling Units . | . . . . . Scanalyzers . | . . . . . Garrison Access . | . . . . . Data Cores Recovered . | . . . . . Used . | . . . . . Hacking Detections 5 | . 5 . . . Full Trace Events 1 | . 1 . . . Feedback Events . | . . . . . Feedback Blocked . | . . . . . Robot Schematics Acquired . | . . . . . Robots Built . | . . . . . Authchips . | . . . . . Time . | . . . . . Total Robot Build Rating . | . . . . . Part Schematics Acquired . | . . . . . Parts Built . | . . . . . Authchips . | . . . . . Time . | . . . . . Total Part Build Rating . | . . . . . Parts Repaired . | . . . . . Time . | . . . . . Parts Recycled . | . . . . . Recycled Matter . | . . . . . Retrieved Matter . | . . . . . Retrieved Components . | . . . . . Parts Scanalyzed . | . . . . . Part Schematics Acquired . | . . . . . Parts Damaged . | . . . . . Bothacking | -11 -10 -10 -10 -9 ------------ Run | Yrd Mat Min Exi Min Used RIF Installer . | . . . . . Robots Hacked . | . . . . . Non-combat . | . . . . . Combat . | . . . . . Robot Hacks Applied . | . . . . . Relay Couplers Released . | . . . . . Fabnet Peak Effective % . | . . . . . Robots Rewired . | . . . . . Allies Hacked . | . . . . . Hacks Repelled . | . . . . . Allies | -11 -10 -10 -10 -9 -------- Run | Yrd Mat Min Exi Min Total Allies . | . . . . . Largest Group . | . . . . . Highest-Rated Group . | . . . . . Highest-Rated Ally . | . . . . . Total Orders . | . . . . . Ally Attacks . | . . . . . Total Damage . | . . . . . Kills . | . . . . . Allies Corrupted . | . . . . . Allies Melted . | . . . . . Intel | -11 -10 -10 -10 -9 ------- Run | Yrd Mat Min Exi Min Robot Analysis Total . | . . . . . Derelict Logs Recovered 1 | . . . . 1 Drone Launches . | . . . . . Drone Recoveries . | . . . . . Exploration | -11 -10 -10 -10 -9 ------------- Run | Yrd Mat Min Exi Min Turns Passed 2368 | 49 1237 68 913 101 Spaces Moved 1263 | 36 620 43 516 48 Core 15 | 15 . . . . Treads 1248 | 21 620 43 516 48 Legs . | . . . . . Wheels . | . . . . . Hover . | . . . . . Flight . | . . . . . Fastest Speed 50 | 50 160 160 160 160 Average Speed 158 | 114 160 160 160 160 Slowest Speed 160 | 160 160 160 160 160 Overloaded Moves . | . . . . . Propulsion Burnouts . | . . . . . Robots Hopped . | . . . . . Cave-ins Triggered . | . . . . . Exploration Rate (%) 44 | 3 96 14 89 19 Regions Visited 4 Branch Regions 3 Pre-discovered Areas . | . . . . . Known Exits Taken 3 | . 1 1 1 . Unknown Exits Taken 1 | 1 . . . . Scrap Searched . | . . . . . Spaces Dug . | . . . . . Terrain Destroyed . | . . . . . Melee . | . . . . . Projectile . | . . . . . AOE . | . . . . . Terrain Rammed . | . . . . . Walls Destroyed . | . . . . . Machines Disabled . | . . . . . Actions | -11 -10 -10 -10 -9 --------- Run | Yrd Mat Min Exi Min Total 1434 | 43 724 42 566 59 Wait 13 | . 12 . 1 . Move 1259 | 35 619 42 515 48 Hop . | . . . . . Pick Up 8 | 3 4 . 1 . Fast Attach 4 | 2 2 . . . Attach 4 | 3 1 . . . Detach . | . . . . . Swap 8 | . 4 . 3 1 Drop 2 | . . . 2 . Fire 84 | . 70 . 11 3 Melee 25 | . . . 18 7 Ram . | . . . . . Kick . | . . . . . Crush . | . . . . . Escape Stasis . | . . . . . Rewire . | . . . . . Trap . | . . . . . Miscellaneous 27 | . 12 . 15 . Route ------- -11/Scrapyard -10/Materials (discovered 4 exits: *Mat x3 / *Min) -10/Mines -10/Exiles -9/Mines History --------- Turn | Location | Event 1 | -11/Scrapyard | Upgraded with Propulsion slot (x1) 1 | -11/Scrapyard | Upgraded with Utility slot (x1) 1 | -11/Scrapyard | Upgraded with Weapon slot (x1) 9 | -11/Scrapyard | Discovered new exit (range 15) 50 | -11/Scrapyard | Entered Materials 304 | -10/Materials | Discovered new exit (range 16) 311 | -10/Materials | Build established: Mutant 452 | -10/Materials | Identified exit to Mines 508 | -10/Materials | Core integrity fell below 50% 656 | -10/Materials | Discovered new exit (range 12) 674 | -10/Materials | Identified exit to Materials 836 | -10/Materials | Core integrity fell below 20% 869 | -10/Materials | Discovered exit to Materials (range 10) 1141 | -10/Materials | Discovered exit to Materials (range 16) 1176 | -10/Materials | Reached level 2 1287 | -10/Materials | Entered Mines 1337 | -10/Mines | Met a Derelict bent on vengeance 1347 | -10/Mines | Deemed a non-threat by the Exiles lab entrance 1348 | -10/Mines | Discovered new exit (range 5) 1353 | -10/Mines | Identified exit to Exiles 1355 | -10/Mines | Entered Exiles 1355 | -10/Exiles | Found Exiles lab destroyed 2247 | -10/Exiles | Discovered new exit (range 14) 2263 | -10/Exiles | Identified exit to Mines 2268 | -10/Exiles | Entered Mines 2270 | -9/Mines | Reached level 3 2270 | -9/Mines | Upgraded with Utility slot (x1) 2297 | -9/Mines | Assembled infested the area 2312 | -9/Mines | Learned location of 1 exit from Proximity Caves 2369 | -9/Mines | Destroyed by as-57307 with Assembled Heavy Rifle Last Messages --------------- GOAL=ESCAPE 02270_ Reached level 3. 02270_ Upgraded: Utility Slot (+1) 02270_ Upgraded: KI Damage % (+10) 02297_ ALERT: Infestation in the mines, dispatching Demolisher response squad. 02312_ Acquired derelict log, extracted data. Data stored: Proximity Caves exits (x1). 02338_ Protomatter-27 decays. 02339_ as-61919 destroyed. 02342_ U-05 Engineer lays Concrete. 02343_ R-06 Scavenger destroyed. 02343_ as-60884 sneak attacks. 02343_ U-05 Engineer destroyed. 02358_ as-47468 destroyed. 02360_ Destroyed Asb. Hover Unit. 02364_ as-60884 suffers critical hit (Impale). 02364_ as-60884 destroyed. 02365_ Acquired 21 matter. 02369_ as-54215 destroyed. Map ----- +----------------------------------------------------+ | ?????????????????????????????????????????????? | | ?????????????????????????????????????????????? | | ?????????????????????????????????????????????? | | ?????????????????????????????????????????????? | | ??????????????????????????????####???????????? | | ?????????????????????????????## ##??????????? | | ????????????????????????????## #??#####???? | | ??????????????????????????### #### ##??? | | ?????????????????????????## ## #??? | | ??????????????????######## #??? | | ??????????????????# """ ##??? | | ??????????????????# """ ####???? | | ??????????????????# ###### """ #??????? | | ??????????????????# #????# ### ##?????? | | ??????????????????# ????# #?## #?????? | | ??????????????###? ????# #??## #????? | | ?????????????? ???# #???## #???? | | ????????????? #???# #????# #??? | | ????????????? ##??## #????## #??? | | ?????????????" #??## ###???## #??? | | ???????????? ! ### ##???## #??? | | ???????????? %| #?????# ##??? | | ?????????x??? *%! %%= a #??????###???? | | ?????????x???| =% !# a a ##????????????? | | ?????????????? ## # %#####?????????????? | | ??????????????# ?# #@ #?????????????????? | | ???????????????? ###?#$?#%%#?????????????????? | | ????????????????????? ?# %#?????????????????? | | ????????????????????# ?? #?????????????????? | | ????????????????????#?? ?????????????????? | | ??????????????????????? ?????????????????? | | ?????????????????????? a ????????????????? | | ????????????????????? ????????????????? | | ???????????????x????? ???????????????? | | ??????????????x?????## ???????????????? | | ??????????????x??????## r ##??????????????? | | ??????????????????????## #?????x?????????? | | ????????????x?x????????## #???????????????? | | ?????????????????????????## ???????????????? | | ??????????????????????????? #???????????????? | | ??????????????????????????? ?????????????????? | | ?????????????????????????????????????????????? | | ?????????????????????????????????????????????? | | ?????????????????????????????????????????????? | | ?????????????????????????????????????????????? | | ?????????????????????????????????????????????? | | ?????????????????????????????????????????????? | | ?????????????????????????????????????????????? | | ?????????????????????????????????????????????? | | ?????????????????????????????????????????????? | +----------------------------------------------------+ Best States ------------- Heat Dissipation 25 Energy Generation 14 Energy Capacity 250 Matter Stores 300 Matter Capacity 300 Sight Range 16 Robot Scan Range 18 Terrain Scan Density 10 Evasion (%) 50 Recoil Reduction 2 Offensive Hacking 10 Item Schematics ----------------- None Robot Schematics ------------------ None Fabricated ------------ Nothing Alien Tech Used ----------------- None Achievements -------------- None Challenges ------------ None RPGLIKE | -11 -10 -10 -10 -9 --------- Run | Yrd Mat Min Exi Min Levels Raised 2 | . 1 . . 1 XP Earned 6045 | 3000 1545 500 500 500 XP Spent 5850 | 3000 1350 . . 1500 Upgrades 18 | 6 9 . . 3 Propulsion Slot 1 | 1 . . . . Utility Slot 2 | 1 . . . 1 Weapon Slot 1 | 1 . . . . Inventory Capacity 3 | 3 . . . . Sensor Range 9 | . 9 . . . KI Damage % 2 | . . . . 2 Protomatter Created 251 | . 126 . 107 18 Integrity Restored 585 | . 264 . 321 . Core 585 | . 264 . 321 . Protomatter Decayed 27 | . . . . 27 Game ------ Seed TrapMetafiberRail Manual? 0 Play Time 00:14:24 Cumulative 33.1 hours Start 2025.03.24 @ 13:00:00 End 2025.03.24 @ 13:13:33 Sessions 1 Manual Loads 0 Difficulty Rogue Special Mode Winter2019/RPGLIKE Game No. 57 Rogue 57 Adventurer 0 Explorer 0 Win Type - Total 0 Types 0/0/0/0/0/0/0/0/0 Lore% 13 Gallery% 25 Achievement% 28 Wizard Run 0 Options --------- Layout 0 ASCII 0 Keyboard 0 Movement Mouse Keybinds 0 Fullscreen 1 Font 24/Smallcaps Map View 76x56 Zoom Use 0% Tactical HUD 1 Map Filters NONE Filters NONE Steam 1 RUN: 8e90d768-3c56-4f44-9e3d-e37ce9c667fe